[Event "November 21 Late 2023"]
[Site "https://www.chess.com"]
[Date "2023.11.21"]
[Round "2"]
[White "Broca Jimenez, Fernando"]
[Black "Joie, Sebastien"]
[Result "0-1"]
[Board "149"]
[TimeControl "180+1"]
[WhiteFideId "5104742"]
[BlackFideId "650420"]
[WhiteElo "2062"]
[BlackElo "2396"]
[WhiteTeam "MEX"]
[BlackTeam "FRA"]
[WhiteClock "0:00:10"]
[BlackClock "0:00:54"]

1. e4 {[%clk 0:03:00]}  c5 {[%clk 0:02:56]} 2. c3 {[%clk 0:02:59]}  d5 {[%clk 0:02:55]} 3. exd5 {[%clk 0:02:59]}  Qxd5 {[%clk 0:02:56]} 4. d4 {[%clk 0:03:00]}  Nc6 {[%clk 0:02:57]} 5. Nf3 {[%clk 0:03:00]}  Bg4 {[%clk 0:02:57]} 6. Be2 {[%clk 0:02:59]}  e6 {[%clk 0:02:57]} 7. O-O {[%clk 0:02:58]}  Nf6 {[%clk 0:02:56]} 8. Bf4 {[%clk 0:02:50]}  Be7 {[%clk 0:02:50]} 9. Nbd2 {[%clk 0:02:35]}  O-O {[%clk 0:02:36]} 10. dxc5 {[%clk 0:02:18]}  Bxc5 {[%clk 0:02:18]} 11. Nb3 {[%clk 0:02:15]}  Bb6 {[%clk 0:02:16]} 12. Qxd5 {[%clk 0:01:50]}  Nxd5 {[%clk 0:02:17]} 13. Bg3 {[%clk 0:01:50]}  e5 {[%clk 0:02:03]} 14. h3 {[%clk 0:01:38]}  Bh5 {[%clk 0:01:56]} 15. Rad1 {[%clk 0:01:35]}  Rad8 {[%clk 0:01:48]} 16. Rfe1 {[%clk 0:01:07]}  f6 {[%clk 0:01:41]} 17. c4 {[%clk 0:00:32]}  Ndb4 {[%clk 0:01:16]} 18. a3 {[%clk 0:00:29]}  Nc2 {[%clk 0:01:12]} 19. Rxd8 {[%clk 0:00:29]}  Rxd8 {[%clk 0:01:01]} 20. Rd1 {[%clk 0:00:29]}  N2d4 {[%clk 0:01:02]} 21. Nbxd4 {[%clk 0:00:16]}  Nxd4 {[%clk 0:01:01]} 22. Kf1 {[%clk 0:00:16]}  Nxe2 {[%clk 0:00:53]} 23. Rxd8+ {[%clk 0:00:17]}  Bxd8 {[%clk 0:00:53]} 24. Kxe2 {[%clk 0:00:10]}  e4 {[%clk 0:00:54]} 0-1

[Event "November 21 Late 2023"]
[Site "https://www.chess.com"]
[Date "2023.11.21"]
[Round "2"]
[White "Curtis, John"]
[Black "Koc, Przemyslaw"]
[Result "0-1"]
[Board "151"]
[TimeControl "180+1"]
[WhiteFideId "3200256"]
[BlackFideId "1109081"]
[WhiteElo "2203"]
[BlackElo "2118"]
[WhiteTeam "AUS"]
[BlackTeam "POL"]
[WhiteClock "0:00:57"]
[BlackClock "0:00:58"]

1. e4 {[%clk 0:03:00]}  d6 {[%clk 0:02:59]} 2. d4 {[%clk 0:03:00]}  Nf6 {[%clk 0:02:59]} 3. Nc3 {[%clk 0:02:56]}  e5 {[%clk 0:02:57]} 4. dxe5 {[%clk 0:02:53]}  dxe5 {[%clk 0:02:57]} 5. Qxd8+ {[%clk 0:02:54]}  Kxd8 {[%clk 0:02:58]} 6. Bc4 {[%clk 0:02:54]}  Be6 {[%clk 0:02:59]} 7. Bxe6 {[%clk 0:02:53]}  fxe6 {[%clk 0:03:00]} 8. Nf3 {[%clk 0:02:54]}  Bd6 {[%clk 0:03:00]} 9. Bg5 {[%clk 0:02:49]}  Ke7 {[%clk 0:02:58]} 10. O-O-O {[%clk 0:02:48]}  Nc6 {[%clk 0:02:57]} 11. Nb5 {[%clk 0:02:47]}  a6 {[%clk 0:02:57]} 12. Nxd6 {[%clk 0:02:47]}  cxd6 {[%clk 0:02:57]} 13. Nd2 {[%clk 0:02:42]}  h6 {[%clk 0:02:55]} 14. Bh4 {[%clk 0:02:42]}  g5 {[%clk 0:02:54]} 15. Bg3 {[%clk 0:02:42]}  Nh5 {[%clk 0:02:54]} 16. f3 {[%clk 0:02:42]}  Nf4 {[%clk 0:02:50]} 17. Bxf4 {[%clk 0:02:36]}  exf4 {[%clk 0:02:49]} 18. Nc4 {[%clk 0:02:36]}  Rad8 {[%clk 0:02:42]} 19. Nb6 {[%clk 0:02:35]}  Ne5 {[%clk 0:02:34]} 20. h3 {[%clk 0:02:35]}  h5 {[%clk 0:02:23]} 21. Kd2 {[%clk 0:02:28]}  g4 {[%clk 0:02:22]} 22. hxg4 {[%clk 0:02:27]}  hxg4 {[%clk 0:02:22]} 23. Ke2 {[%clk 0:02:18]}  g3 {[%clk 0:02:09]} 24. c4 {[%clk 0:02:07]}  Rh2 {[%clk 0:01:58]} 25. Rhg1 {[%clk 0:01:58]}  Nc6 {[%clk 0:01:42]} 26. a3 {[%clk 0:01:43]}  Rdh8 {[%clk 0:01:33]} 27. b4 {[%clk 0:01:42]}  e5 {[%clk 0:01:22]} 28. Rd3 {[%clk 0:01:19]}  Nd4+ {[%clk 0:01:21]} 29. Kd2 {[%clk 0:01:17]}  Rh1 {[%clk 0:01:09]} 30. Rxh1 {[%clk 0:01:15]}  Rxh1 {[%clk 0:01:09]} 31. Kc3 {[%clk 0:01:10]}  Rc1+ {[%clk 0:01:04]} 32. Kb2 {[%clk 0:01:06]}  Rc2+ {[%clk 0:01:05]} 33. Kb1 {[%clk 0:01:06]}  Rxg2 {[%clk 0:01:05]} 34. c5 {[%clk 0:01:06]}  dxc5 {[%clk 0:01:03]} 35. Nc4 {[%clk 0:01:06]}  Ke6 {[%clk 0:01:02]} 36. bxc5 {[%clk 0:00:57]}  Rf2 {[%clk 0:00:58]} 0-1

[Event "November 21 Late 2023"]
[Site "https://www.chess.com"]
[Date "2023.11.21"]
[Round "2"]
[White "Manfroi, Alexander Giannini"]
[Black "YouShallNotPass001"]
[Result "0-1"]
[Board "153"]
[TimeControl "180+1"]
[WhiteFideId "22739335"]
[WhiteElo "1618"]
[BlackElo "2442"]
[WhiteTeam "BRA"]
[WhiteClock "0:00:11"]
[BlackClock "0:00:17"]

1. d4 {[%clk 0:03:00]}  Nf6 {[%clk 0:03:00]} 2. Bf4 {[%clk 0:03:00]}  e6 {[%clk 0:03:01]} 3. Nc3 {[%clk 0:03:00]}  c5 {[%clk 0:03:02]} 4. e3 {[%clk 0:03:00]}  cxd4 {[%clk 0:03:00]} 5. exd4 {[%clk 0:03:01]}  Be7 {[%clk 0:02:58]} 6. Nf3 {[%clk 0:03:01]}  O-O {[%clk 0:02:58]} 7. Bd3 {[%clk 0:03:02]}  b6 {[%clk 0:02:58]} 8. O-O {[%clk 0:03:02]}  Bb7 {[%clk 0:02:59]} 9. Qe2 {[%clk 0:03:02]}  d6 {[%clk 0:02:59]} 10. Rad1 {[%clk 0:03:02]}  Nbd7 {[%clk 0:02:59]} 11. Nb1 {[%clk 0:03:02]}  a6 {[%clk 0:02:57]} 12. c3 {[%clk 0:03:03]}  Nh5 {[%clk 0:02:56]} 13. Bc1 {[%clk 0:02:55]}  g6 {[%clk 0:02:53]} 14. Be4 {[%clk 0:02:50]}  Qc7 {[%clk 0:02:52]} 15. Bxb7 {[%clk 0:02:46]}  Qxb7 {[%clk 0:02:53]} 16. Nbd2 {[%clk 0:02:47]}  Rfe8 {[%clk 0:02:48]} 17. Ne4 {[%clk 0:02:46]}  b5 {[%clk 0:02:42]} 18. Ng3 {[%clk 0:02:47]}  Ng7 {[%clk 0:02:40]} 19. Qe4 {[%clk 0:02:39]}  d5 {[%clk 0:02:39]} 20. Qe2 {[%clk 0:02:31]}  b4 {[%clk 0:02:36]} 21. Bf4 {[%clk 0:02:25]}  Rac8 {[%clk 0:02:31]} 22. Qd2 {[%clk 0:01:45]}  Nb6 {[%clk 0:02:28]} 23. Ne5 {[%clk 0:01:40]}  bxc3 {[%clk 0:02:26]} 24. bxc3 {[%clk 0:01:40]}  Nc4 {[%clk 0:02:26]} 25. Nxc4 {[%clk 0:01:40]}  Rxc4 {[%clk 0:02:27]} 26. Rb1 {[%clk 0:01:36]}  Qc6 {[%clk 0:02:26]} 27. Rfc1 {[%clk 0:01:35]}  Rc8 {[%clk 0:02:25]} 28. Ne2 {[%clk 0:01:35]}  Nf5 {[%clk 0:02:22]} 29. Rb3 {[%clk 0:01:30]}  Bd8 {[%clk 0:02:21]} 30. Qd3 {[%clk 0:01:16]}  Bf6 {[%clk 0:01:41]} 31. Ng3 {[%clk 0:01:08]}  Nxd4 {[%clk 0:01:33]} 32. Bd2 {[%clk 0:00:20]}  Nb5 {[%clk 0:01:22]} 33. Qf3 {[%clk 0:00:19]}  Bxc3 {[%clk 0:00:52]} 34. a4 {[%clk 0:00:18]}  Nd4 {[%clk 0:00:49]} 35. Qf6 {[%clk 0:00:16]}  Nxb3 {[%clk 0:00:49]} 36. Bxc3 {[%clk 0:00:14]}  Rxc3 {[%clk 0:00:47]} 37. Rf1 {[%clk 0:00:13]}  e5 {[%clk 0:00:33]} 38. Qxe5 {[%clk 0:00:12]}  Qe6 {[%clk 0:00:33]} 39. Qg5 {[%clk 0:00:12]}  Rc1 {[%clk 0:00:29]} 40. h4 {[%clk 0:00:12]}  Rxf1+ {[%clk 0:00:28]} 41. Nxf1 {[%clk 0:00:13]}  Nd4 {[%clk 0:00:27]} 42. Kh2 {[%clk 0:00:12]}  Nf5 {[%clk 0:00:25]} 43. h5 {[%clk 0:00:12]}  Qe5+ {[%clk 0:00:24]} 44. f4 {[%clk 0:00:11]}  Qe7 {[%clk 0:00:23]} 45. Qg4 {[%clk 0:00:11]}  Qh4+ {[%clk 0:00:22]} 46. Qxh4 {[%clk 0:00:11]}  Nxh4 {[%clk 0:00:23]} 47. Kg3 {[%clk 0:00:12]}  Nf5+ {[%clk 0:00:23]} 48. Kg4 {[%clk 0:00:13]}  d4 {[%clk 0:00:23]} 49. hxg6 {[%clk 0:00:13]}  hxg6 {[%clk 0:00:23]} 50. Kg5 {[%clk 0:00:14]}  d3 {[%clk 0:00:23]} 51. Kf6 {[%clk 0:00:15]}  d2 {[%clk 0:00:23]} 52. Nxd2 {[%clk 0:00:16]}  Rd8 {[%clk 0:00:22]} 53. Ne4 {[%clk 0:00:15]}  Rd4 {[%clk 0:00:21]} 54. Ng5 {[%clk 0:00:15]}  Rxf4 {[%clk 0:00:20]} 55. g4 {[%clk 0:00:13]}  Ng7+ {[%clk 0:00:20]} 56. Ke5 {[%clk 0:00:13]}  Rxg4 {[%clk 0:00:20]} 57. Ne4 {[%clk 0:00:12]}  Ne8 {[%clk 0:00:18]} 58. a5 {[%clk 0:00:11]}  Kg7 {[%clk 0:00:18]} 59. Kd5 {[%clk 0:00:10]}  Nc7+ {[%clk 0:00:17]} 60. Ke5 {[%clk 0:00:10]}  Ne6 {[%clk 0:00:16]} 61. Nd6 {[%clk 0:00:09]}  Ra4 {[%clk 0:00:16]} 62. Ne8+ {[%clk 0:00:10]}  Kf8 {[%clk 0:00:16]} 63. Nf6 {[%clk 0:00:09]}  Rxa5+ {[%clk 0:00:16]} 64. Kd6 {[%clk 0:00:10]}  Kg7 {[%clk 0:00:16]} 65. Ne8+ {[%clk 0:00:10]}  Kf8 {[%clk 0:00:17]} 66. Nf6 {[%clk 0:00:10]}  Rf5 {[%clk 0:00:17]} 67. Nd7+ {[%clk 0:00:11]}  Kg7 {[%clk 0:00:17]} 68. Nb6 {[%clk 0:00:09]}  a5 {[%clk 0:00:18]} 69. Ke7 {[%clk 0:00:09]}  g5 {[%clk 0:00:19]} 70. Nd7 {[%clk 0:00:09]}  Rf1 {[%clk 0:00:19]} 71. Nf8 {[%clk 0:00:10]}  g4 {[%clk 0:00:19]} 72. Nd7 {[%clk 0:00:09]}  g3 {[%clk 0:00:19]} 73. Ne5 {[%clk 0:00:09]}  g2 {[%clk 0:00:19]} 74. Ke8 {[%clk 0:00:10]}  g1=Q {[%clk 0:00:18]} 75. Nd7 {[%clk 0:00:10]}  a4 {[%clk 0:00:18]} 76. Ne5 {[%clk 0:00:09]}  a3 {[%clk 0:00:19]} 77. Ke7 {[%clk 0:00:09]}  a2 {[%clk 0:00:19]} 78. Ke8 {[%clk 0:00:09]}  a1=Q {[%clk 0:00:19]} 79. Ke7 {[%clk 0:00:10]}  Qa8 {[%clk 0:00:19]} 80. Ng6 {[%clk 0:00:10]}  Qxg6 {[%clk 0:00:17]} 81. Kd7 {[%clk 0:00:10]}  Nf8+ {[%clk 0:00:17]} 82. Ke7 {[%clk 0:00:11]}  Qe6# {[%clk 0:00:17]} 0-1

[Event "November 21 Late 2023"]
[Site "https://www.chess.com"]
[Date "2023.11.21"]
[Round "2"]
[White "zano2023"]
[Black "Kovalevsky, Stanislav"]
[Result "0-1"]
[Board "154"]
[TimeControl "180+1"]
[BlackFideId "13508598"]
[WhiteElo "2190"]
[BlackElo "2092"]
[BlackTeam "FID"]
[WhiteClock "0:00:54"]
[BlackClock "0:00:12"]

1. d4 {[%clk 0:03:00]}  d5 {[%clk 0:02:57]} 2. Nf3 {[%clk 0:03:00]}  Nf6 {[%clk 0:02:57]} 3. Nbd2 {[%clk 0:02:54]}  Nbd7 {[%clk 0:02:56]} 4. e3 {[%clk 0:02:55]}  Ne4 {[%clk 0:02:54]} 5. Nxe4 {[%clk 0:02:54]}  dxe4 {[%clk 0:02:54]} 6. Nd2 {[%clk 0:02:47]}  f5 {[%clk 0:02:54]} 7. f3 {[%clk 0:02:43]}  exf3 {[%clk 0:02:53]} 8. Qxf3 {[%clk 0:02:41]}  e6 {[%clk 0:02:48]} 9. e4 {[%clk 0:02:38]}  Nf6 {[%clk 0:02:44]} 10. exf5 {[%clk 0:02:28]}  Qxd4 {[%clk 0:02:30]} 11. fxe6 {[%clk 0:02:15]}  Be7 {[%clk 0:02:12]} 12. Bd3 {[%clk 0:02:08]}  O-O {[%clk 0:02:07]} 13. Qe2 {[%clk 0:01:57]}  Ng4 {[%clk 0:01:35]} 14. Nf3 {[%clk 0:01:56]}  Bb4+ {[%clk 0:01:12]} 15. Bd2 {[%clk 0:01:43]}  Qxb2 {[%clk 0:01:10]} 16. O-O {[%clk 0:01:35]}  Bc5+ {[%clk 0:01:04]} 17. Kh1 {[%clk 0:01:26]}  Nf2+ {[%clk 0:01:01]} 18. Rxf2 {[%clk 0:01:25]}  Qxa1+ {[%clk 0:00:57]} 19. Rf1 {[%clk 0:01:26]}  Qf6 {[%clk 0:00:43]} 20. Ng5 {[%clk 0:01:20]}  Qxf1+ {[%clk 0:00:39]} 21. Qxf1 {[%clk 0:01:19]}  Rxf1+ {[%clk 0:00:39]} 22. Bxf1 {[%clk 0:01:19]}  h6 {[%clk 0:00:29]} 23. Ne4 {[%clk 0:01:18]}  Be7 {[%clk 0:00:28]} 24. Bc4 {[%clk 0:01:14]}  b5 {[%clk 0:00:20]} 25. Bd5 {[%clk 0:01:14]}  Rb8 {[%clk 0:00:19]} 26. Bf4 {[%clk 0:01:14]}  Rb6 {[%clk 0:00:17]} 27. Bxc7 {[%clk 0:01:14]}  Ra6 {[%clk 0:00:17]} 28. c3 {[%clk 0:01:10]}  Bxe6 {[%clk 0:00:16]} 29. c4 {[%clk 0:01:05]}  bxc4 {[%clk 0:00:15]} 30. Bb7 {[%clk 0:01:01]}  Rxa2 {[%clk 0:00:14]} 31. h3 {[%clk 0:01:02]}  Re2 {[%clk 0:00:13]} 32. Nc3 {[%clk 0:01:01]}  Re1+ {[%clk 0:00:13]} 33. Kh2 {[%clk 0:01:01]}  Bf6 {[%clk 0:00:13]} 34. Ne4 {[%clk 0:01:00]}  c3 {[%clk 0:00:11]} 35. Nxc3 {[%clk 0:00:59]}  Bxc3 {[%clk 0:00:11]} 36. Bg3 {[%clk 0:00:59]}  Be5 {[%clk 0:00:11]} 37. Bxe5 {[%clk 0:00:57]}  Rxe5 {[%clk 0:00:12]} 38. Bc6 {[%clk 0:00:54]}  a5 {[%clk 0:00:12]} 0-1

[Event "November 21 Late 2023"]
[Site "https://www.chess.com"]
[Date "2023.11.21"]
[Round "2"]
[White "szachmistrz2500"]
[Black "seasidesunset"]
[Result "0-1"]
[Board "156"]
[TimeControl "180+1"]
[WhiteElo "2439"]
[BlackElo "2162"]
[WhiteClock "0:01:30"]
[BlackClock "0:00:26"]

1. Nf3 {[%clk 0:02:57]}  Nf6 {[%clk 0:02:59]} 2. g3 {[%clk 0:02:57]}  g6 {[%clk 0:02:59]} 3. Bg2 {[%clk 0:02:57]}  Bg7 {[%clk 0:02:59]} 4. O-O {[%clk 0:02:58]}  O-O {[%clk 0:02:59]} 5. d3 {[%clk 0:02:59]}  c5 {[%clk 0:02:57]} 6. e4 {[%clk 0:02:59]}  d6 {[%clk 0:02:56]} 7. Re1 {[%clk 0:02:58]}  Nc6 {[%clk 0:02:56]} 8. c3 {[%clk 0:02:58]}  Rb8 {[%clk 0:02:50]} 9. d4 {[%clk 0:02:54]}  e6 {[%clk 0:02:44]} 10. Qe2 {[%clk 0:02:50]}  Qc7 {[%clk 0:02:38]} 11. e5 {[%clk 0:02:41]}  dxe5 {[%clk 0:02:37]} 12. dxe5 {[%clk 0:02:40]}  Nd7 {[%clk 0:02:33]} 13. Bf4 {[%clk 0:02:40]}  h6 {[%clk 0:02:20]} 14. h4 {[%clk 0:02:39]}  b6 {[%clk 0:02:12]} 15. Nbd2 {[%clk 0:02:37]}  Bb7 {[%clk 0:02:12]} 16. Rad1 {[%clk 0:02:33]}  Rbd8 {[%clk 0:02:12]} 17. Ne4 {[%clk 0:02:33]}  Ncxe5 {[%clk 0:02:01]} 18. Nxe5 {[%clk 0:02:26]}  Nxe5 {[%clk 0:01:58]} 19. Rxd8 {[%clk 0:02:23]}  Rxd8 {[%clk 0:01:57]} 20. Nxc5 {[%clk 0:02:16]}  Bxg2 {[%clk 0:01:51]} 21. Kxg2 {[%clk 0:02:09]}  Qc6+ {[%clk 0:01:32]} 22. Ne4 {[%clk 0:02:06]}  f5 {[%clk 0:01:16]} 23. Be3 {[%clk 0:02:01]}  Qxe4+ {[%clk 0:01:12]} 24. f3 {[%clk 0:01:59]}  Qd3 {[%clk 0:01:12]} 25. Bd4 {[%clk 0:01:57]}  Qxe2+ {[%clk 0:00:51]} 26. Rxe2 {[%clk 0:01:58]}  Nf7 {[%clk 0:00:34]} 27. Be3 {[%clk 0:01:47]}  e5 {[%clk 0:00:33]} 28. Kf2 {[%clk 0:01:46]}  Nd6 {[%clk 0:00:31]} 29. Ke1 {[%clk 0:01:46]}  Nc4 {[%clk 0:00:31]} 30. Bc1 {[%clk 0:01:46]}  Kf7 {[%clk 0:00:28]} 31. b3 {[%clk 0:01:46]}  Nd6 {[%clk 0:00:28]} 32. c4 {[%clk 0:01:46]}  e4 {[%clk 0:00:28]} 33. f4 {[%clk 0:01:41]}  Bc3+ {[%clk 0:00:26]} 34. Kf2 {[%clk 0:01:37]}  Nb7 {[%clk 0:00:26]} 35. Be3 {[%clk 0:01:36]}  Nc5 {[%clk 0:00:26]} 36. Rc2 {[%clk 0:01:36]}  Bd4 {[%clk 0:00:25]} 37. b4 {[%clk 0:01:32]}  Bxe3+ {[%clk 0:00:24]} 38. Kxe3 {[%clk 0:01:33]}  Rd3+ {[%clk 0:00:25]} 39. Ke2 {[%clk 0:01:33]}  Ne6 {[%clk 0:00:24]} 40. c5 {[%clk 0:01:33]}  Nd4+ {[%clk 0:00:25]} 41. Ke1 {[%clk 0:01:30]}  Nxc2+ {[%clk 0:00:26]} 0-1

[Event "November 21 Late 2023"]
[Site "https://www.chess.com"]
[Date "2023.11.21"]
[Round "2"]
[White "Kniazev, Igor"]
[Black "Bogaudinov, Rushan"]
[Result "0-1"]
[Board "157"]
[TimeControl "180+1"]
[WhiteFideId "4136349"]
[BlackFideId "4129288"]
[WhiteElo "1862"]
[BlackElo "1908"]
[WhiteTeam "RUS"]
[BlackTeam "RUS"]
[WhiteClock "0:01:48"]
[BlackClock "0:02:25"]

1. e4 {[%clk 0:03:00]}  e6 {[%clk 0:03:00]} 2. Nc3 {[%clk 0:02:58]}  c5 {[%clk 0:02:59]} 3. Nf3 {[%clk 0:02:57]}  Nc6 {[%clk 0:02:59]} 4. d4 {[%clk 0:02:57]}  cxd4 {[%clk 0:03:00]} 5. Nxd4 {[%clk 0:02:57]}  a6 {[%clk 0:02:58]} 6. Be2 {[%clk 0:02:56]}  Qc7 {[%clk 0:02:57]} 7. O-O {[%clk 0:02:55]}  b5 {[%clk 0:02:57]} 8. Nxc6 {[%clk 0:02:52]}  dxc6 {[%clk 0:02:50]} 9. Bf3 {[%clk 0:02:45]}  e5 {[%clk 0:02:46]} 10. Be3 {[%clk 0:02:39]}  Be6 {[%clk 0:02:45]} 11. Qd2 {[%clk 0:02:38]}  Rd8 {[%clk 0:02:43]} 12. Qe2 {[%clk 0:02:37]}  Nf6 {[%clk 0:02:43]} 13. b3 {[%clk 0:02:34]}  Bb4 {[%clk 0:02:42]} 14. Bd2 {[%clk 0:02:26]}  Qa5 {[%clk 0:02:32]} 15. Qe3 {[%clk 0:02:17]}  Rxd2 {[%clk 0:02:25]} 16. Nb1 {[%clk 0:01:48]} 0-1

[Event "November 21 Late 2023"]
[Site "https://www.chess.com"]
[Date "2023.11.21"]
[Round "2"]
[White "kinghunter183"]
[Black "Vadim_Galchenko"]
[Result "0-1"]
[Board "158"]
[TimeControl "180+1"]
[WhiteElo "2134"]
[BlackElo "2436"]
[WhiteClock "0:00:02"]
[BlackClock "0:00:41"]

1. c4 {[%clk 0:03:00]}  f5 {[%clk 0:02:59]} 2. b3 {[%clk 0:03:00]}  Nf6 {[%clk 0:03:00]} 3. Bb2 {[%clk 0:03:00]}  g6 {[%clk 0:03:00]} 4. d4 {[%clk 0:02:58]}  Bg7 {[%clk 0:03:00]} 5. Nd2 {[%clk 0:02:58]}  O-O {[%clk 0:03:01]} 6. Qc2 {[%clk 0:02:59]}  d6 {[%clk 0:03:02]} 7. e4 {[%clk 0:02:58]}  fxe4 {[%clk 0:02:57]} 8. Nxe4 {[%clk 0:02:59]}  Bf5 {[%clk 0:02:56]} 9. Bd3 {[%clk 0:02:54]}  Nc6 {[%clk 0:02:55]} 10. Nxf6+ {[%clk 0:02:50]}  Rxf6 {[%clk 0:02:55]} 11. a3 {[%clk 0:02:41]}  Re6+ {[%clk 0:02:11]} 12. Ne2 {[%clk 0:02:28]}  Nxd4 {[%clk 0:02:10]} 13. Bxd4 {[%clk 0:02:19]}  Bxd4 {[%clk 0:02:11]} 14. Bxf5 {[%clk 0:02:13]}  gxf5 {[%clk 0:01:54]} 15. Qxf5 {[%clk 0:01:51]}  Bc3+ {[%clk 0:01:46]} 16. Kf1 {[%clk 0:01:46]}  Rf6 {[%clk 0:01:46]} 17. Qd5+ {[%clk 0:01:27]}  e6 {[%clk 0:01:45]} 18. Qg5+ {[%clk 0:01:25]}  Kh8 {[%clk 0:01:38]} 19. Qc1 {[%clk 0:01:13]}  Bxa1 {[%clk 0:01:36]} 20. Qxa1 {[%clk 0:01:14]}  e5 {[%clk 0:01:36]} 21. Ng3 {[%clk 0:01:10]}  Qf8 {[%clk 0:01:32]} 22. f3 {[%clk 0:01:07]}  Rf4 {[%clk 0:01:30]} 23. Ke2 {[%clk 0:00:57]}  Re8 {[%clk 0:01:28]} 24. Ne4 {[%clk 0:00:50]}  Qg7 {[%clk 0:01:25]} 25. g3 {[%clk 0:00:45]}  Rf5 {[%clk 0:01:23]} 26. Qc3 {[%clk 0:00:38]}  Ref8 {[%clk 0:01:21]} 27. Rf1 {[%clk 0:00:33]}  h6 {[%clk 0:01:22]} 28. Qd3 {[%clk 0:00:29]}  Rh5 {[%clk 0:01:14]} 29. Rf2 {[%clk 0:00:26]}  Rhf5 {[%clk 0:01:13]} 30. c5 {[%clk 0:00:24]}  dxc5 {[%clk 0:01:07]} 31. Nxc5 {[%clk 0:00:25]}  Qe7 {[%clk 0:01:06]} 32. Qe3 {[%clk 0:00:14]}  Kh7 {[%clk 0:01:04]} 33. Ne4 {[%clk 0:00:11]}  Qxa3 {[%clk 0:01:03]} 34. Qc3 {[%clk 0:00:07]}  c6 {[%clk 0:00:58]} 35. Qd3 {[%clk 0:00:05]}  Kh8 {[%clk 0:00:55]} 36. Nd6 {[%clk 0:00:04]}  R5f6 {[%clk 0:00:51]} 37. Nc4 {[%clk 0:00:03]}  Qb2+ {[%clk 0:00:50]} 38. Kf1 {[%clk 0:00:03]}  Qd4 {[%clk 0:00:50]} 39. Qe2 {[%clk 0:00:02]}  e4 {[%clk 0:00:44]} 40. Kg2 {[%clk 0:00:01]}  exf3+ {[%clk 0:00:43]} 41. Rxf3 {[%clk 0:00:02]}  Rxf3 {[%clk 0:00:43]} 42. Qe6 {[%clk 0:00:02]}  R3f6 {[%clk 0:00:41]} 43. Qh3 {[%clk 0:00:01]}  Qf2+ {[%clk 0:00:41]} 44. Kh1 {[%clk 0:00:02]}  Qe1+ {[%clk 0:00:41]} 45. Kg2 {[%clk 0:00:02]}  Qf1# {[%clk 0:00:41]} 0-1

[Event "November 21 Late 2023"]
[Site "https://www.chess.com"]
[Date "2023.11.21"]
[Round "2"]
[White "Batsiashvili, Nino"]
[Black "Oliveira, Tiago Batista"]
[Result "1-0"]
[Board "161"]
[TimeControl "180+1"]
[WhiteFideId "13602993"]
[BlackFideId "2108291"]
[WhiteElo "2233"]
[BlackElo "1962"]
[WhiteTeam "GEO"]
[BlackTeam "BRA"]
[WhiteClock "0:01:31"]
[BlackClock "0:00:00"]

1. e4 {[%clk 0:02:56]}  c5 {[%clk 0:02:54]} 2. Nf3 {[%clk 0:02:56]}  Nc6 {[%clk 0:02:47]} 3. c3 {[%clk 0:02:53]}  Nf6 {[%clk 0:02:44]} 4. Bd3 {[%clk 0:02:51]}  d6 {[%clk 0:02:39]} 5. h3 {[%clk 0:02:51]}  e5 {[%clk 0:02:36]} 6. O-O {[%clk 0:02:51]}  Be7 {[%clk 0:02:36]} 7. Bc2 {[%clk 0:02:49]}  O-O {[%clk 0:02:36]} 8. d4 {[%clk 0:02:49]}  b5 {[%clk 0:02:22]} 9. a4 {[%clk 0:02:39]}  bxa4 {[%clk 0:02:04]} 10. Bxa4 {[%clk 0:02:36]}  Bd7 {[%clk 0:01:57]} 11. Nbd2 {[%clk 0:02:35]}  cxd4 {[%clk 0:01:55]} 12. cxd4 {[%clk 0:02:35]}  Nxd4 {[%clk 0:01:55]} 13. Nxd4 {[%clk 0:02:35]}  exd4 {[%clk 0:01:44]} 14. Nc4 {[%clk 0:02:30]}  Bxa4 {[%clk 0:01:34]} 15. Rxa4 {[%clk 0:02:28]}  d5 {[%clk 0:01:18]} 16. exd5 {[%clk 0:02:21]}  Qxd5 {[%clk 0:01:15]} 17. Qd3 {[%clk 0:02:18]}  Rfc8 {[%clk 0:01:00]} 18. b3 {[%clk 0:02:13]}  Ne4 {[%clk 0:00:54]} 19. Ne3 {[%clk 0:02:01]}  Qc6 {[%clk 0:00:14]} 20. Rxd4 {[%clk 0:01:56]}  Qxc1 {[%clk 0:00:08]} 21. Rxc1 {[%clk 0:01:47]}  Rxc1+ {[%clk 0:00:08]} 22. Nf1 {[%clk 0:01:47]}  Nxf2 {[%clk 0:00:06]} 23. Kxf2 {[%clk 0:01:46]}  Bc5 {[%clk 0:00:06]} 24. Ne3 {[%clk 0:01:44]}  Re8 {[%clk 0:00:03]} 25. Kf3 {[%clk 0:01:33]}  Bxd4 {[%clk 0:00:03]} 26. Qxd4 {[%clk 0:01:33]}  Re1 {[%clk 0:00:00]} 27. Nf5 {[%clk 0:01:31]} 1-0

[Event "November 21 Late 2023"]
[Site "https://www.chess.com"]
[Date "2023.11.21"]
[Round "2"]
[White "Castillo Pena, Patricia Evarista"]
[Black "jactorres"]
[Result "1/2-1/2"]
[Board "166"]
[TimeControl "180+1"]
[WhiteFideId "6412106"]
[WhiteElo "1861"]
[BlackElo "2431"]
[WhiteTeam "DOM"]
[WhiteClock "0:00:15"]
[BlackClock "0:01:03"]

1. d4 {[%clk 0:02:58]}  d5 {[%clk 0:02:59]} 2. Nf3 {[%clk 0:02:58]}  Nf6 {[%clk 0:02:59]} 3. e3 {[%clk 0:02:58]}  c5 {[%clk 0:02:59]} 4. Bd3 {[%clk 0:02:51]}  Nc6 {[%clk 0:02:58]} 5. b3 {[%clk 0:02:51]}  Bg4 {[%clk 0:02:58]} 6. Bb2 {[%clk 0:02:51]}  Qc7 {[%clk 0:02:55]} 7. Nbd2 {[%clk 0:02:49]}  e6 {[%clk 0:02:50]} 8. h3 {[%clk 0:02:49]}  Bh5 {[%clk 0:02:49]} 9. c4 {[%clk 0:02:48]}  cxd4 {[%clk 0:02:45]} 10. exd4 {[%clk 0:02:48]}  Rd8 {[%clk 0:02:38]} 11. Rc1 {[%clk 0:02:44]}  dxc4 {[%clk 0:02:35]} 12. bxc4 {[%clk 0:02:42]}  Bb4 {[%clk 0:02:25]} 13. O-O {[%clk 0:02:40]}  Bxd2 {[%clk 0:02:23]} 14. Qxd2 {[%clk 0:02:38]}  Bxf3 {[%clk 0:02:22]} 15. gxf3 {[%clk 0:02:39]}  Nxd4 {[%clk 0:02:18]} 16. Bxd4 {[%clk 0:02:36]}  Rxd4 {[%clk 0:02:18]} 17. Qe2 {[%clk 0:02:19]}  O-O {[%clk 0:02:14]} 18. Rfd1 {[%clk 0:02:18]}  Qf4 {[%clk 0:02:10]} 19. Rb1 {[%clk 0:02:01]}  Qg5+ {[%clk 0:02:09]} 20. Kh2 {[%clk 0:01:58]}  Rh4 {[%clk 0:02:06]} 21. Rg1 {[%clk 0:01:48]}  Qf4+ {[%clk 0:02:04]} 22. Rg3 {[%clk 0:01:41]}  Nh5 {[%clk 0:01:59]} 23. Rg1 {[%clk 0:01:33]}  Qd6 {[%clk 0:01:41]} 24. Qd2 {[%clk 0:00:56]}  Nxg3 {[%clk 0:01:38]} 25. Bxh7+ {[%clk 0:00:54]}  Rxh7 {[%clk 0:01:32]} 26. Qxd6 {[%clk 0:00:53]}  Nf5 {[%clk 0:01:30]} 27. Qe5 {[%clk 0:00:46]}  Rd8 {[%clk 0:01:22]} 28. c5 {[%clk 0:00:39]}  Rh6 {[%clk 0:01:14]} 29. Rg4 {[%clk 0:00:36]}  Rd2 {[%clk 0:01:10]} 30. Kg2 {[%clk 0:00:35]}  Nh4+ {[%clk 0:01:05]} 31. Kg3 {[%clk 0:00:32]}  Nf5+ {[%clk 0:01:04]} 32. Kg2 {[%clk 0:00:31]}  Nh4+ {[%clk 0:01:04]} 33. Kg3 {[%clk 0:00:18]}  Nf5+ {[%clk 0:01:03]} 34. Kg2 {[%clk 0:00:15]} 1/2-1/2